[Event "FIDE Womens World Cup 2021"]
[Site "Sochi"]
[Date "2021.07.19"]
[Round "3.2"]
[White "Yip, Carissa"]
[Black "Dzagnidze, Nana"]
[Result "0-1"]
[ECO "B56"]
[WhiteElo "2430"]
[BlackElo "2523"]
[Annotator "ChessBase"]
[PlyCount "86"]
[EventDate "2021.07.12"]
[EventType "k.o."]
[EventCountry "RUS"]
[SourceTitle "playchess.com"]
[Source "ChessBase"]
[SourceQuality "1"]
[TimeControl "40/5400+30:1800+30"]

1. e4 {[%emt 0:00:02]} c5 {[%emt 0:00:07]} 2. Nf3 {[%emt 0:00:03]} d6 {[%emt 0:00:13]} 3. d4 {[%emt 0:00:05]} cxd4 {[%emt 0:00:06]} 4. Nxd4 {[%emt 0:00:03]} Nf6 {[%emt 0:00:06]} 5. Nc3 {[%emt 0:00:02]} h6 {[%emt 0:00:06]} 6. Bc4 {[%emt 0:08:30]} e6 {[%emt 0:00:34]} 7. f4 {[%emt 0:00:49]} Qc7 {[%emt 0:03:04]} 8. Bb3 {[%emt 0:01:09]} a6 {[%emt 0:12:43]} 9. f5 {[%emt 0:03:37]} e5 {[%emt 0:00:39]} 10. Nf3 {[%emt 0:08:36]} Nbd7 {[%emt 0:01:19]} 11. g4 {[%emt 0:05:19]} Qc6 {[%emt 0:14:13]} 12. Qe2 {[%emt 0:02:52]} Nc5 {[%emt 0:00:30]} 13. g5 {[%emt 0:11:59]} hxg5 {[%emt 0:04:32]} 14. Bxg5 {[%emt 0:00:03]} Ncxe4 {[%emt 0:03:55]} 15. Ba4 {[%emt 0:03:39]} b5 {[%emt 0:00:07]} 16. Nxb5 {[%emt 0:00:05]} Bd7 {[%emt 0:01:42]} 17. Nxd6+ {[%emt 0:12:46]} Qxd6 {[%emt 0:00:18]} 18. Bxd7+ {[%emt 0:00:02]} Qxd7 {[%emt 0:00:26]} 19. Bxf6 {[%emt 0:00:12]} Nxf6 {[%emt 0:11:29]} 20. Nxe5 {[%emt 0:01:53]} Bb4+ {[%emt 0:00:14]} 21. c3 {[%emt 0:00:22]} Qe7 {[%emt 0:05:58]} 22. cxb4 {[%emt 0:07:13]} Qxb4+ {[%emt 0:00:06]} 23. Kf1 {[%emt 0:00:02]} O-O {[%emt 0:06:54]} 24. Re1 {[%emt 0:00:03]} Rfe8 {[%emt 0:00:52]} 25. Rg1 {[%emt 0:02:14]} Rab8 {[%emt 0:03:29]} 26. Rg3 {[%emt 0:10:47]} Rb5 {[%emt 0:07:39]} 27. Re3 {[%emt 0:01:04]} Qf4+ {[%emt 0:01:35]} 28. Qf3 {[%emt 0:01:37]} Qd4 {[%emt 0:06:23]} 29. Nd3 {[%emt 0:05:27]} Rd8 {[%emt 0:00:59]} 30. h3 {[%emt 0:01:14]} Rdd5 {[%emt 0:01:43]} 31. a4 {[%emt 0:05:50]} Qxa4 {[%emt 0:02:23]} 32. Ne5 {[%emt 0:02:32]} Rxb2 {[%emt 0:06:43]} 33. Ng4 {[%emt 0:04:07]} Qb5+ {[%emt 0:00:37]} 34. Kg1 {[%emt 0:00:27]} Rxf5 {[%emt 0:00:27]} 35. Qa8+ {[%emt 0:01:13]} Kh7 {[%emt 0:00:06]} 36. Nxf6+ {[%emt 0:01:17]} Rxf6 {[%emt 0:00:43]} 37. Qe4+ {[%emt 0:00:40]} Rg6+ {[%emt 0:00:58]} 38. Rg3 {[%emt 0:00:05]} Qc5+ {[%emt 0:01:19]} 39. Ree3 {[%emt 0:01:23]} Qc1+ {[%emt 0:02:42]} 40. Re1 {[%emt 0:00:01]} Qd2 {[%emt 0:01:11]} 41. Qh4+ {[%emt 0:30:07]} Rh6 {[%emt 0:30:33]} 42. Qe4+ {[%emt 0:00:11]} g6 {[%emt 0:00:00]} 43. Rg2 {[%emt 0:00:00]} Qxg2+ {[%emt 0:00:00]} 0-1

[Event "FIDE Womens World Cup 2021"]
[Site "Sochi"]
[Date "2021.07.19"]
[Round "3.2"]
[White "Zawadzka, Jolanta"]
[Black "Batsiashvili, Nino"]
[Result "0-1"]
[ECO "C77"]
[WhiteElo "2403"]
[BlackElo "2487"]
[Annotator "ChessBase"]
[PlyCount "56"]
[EventDate "2021.07.12"]
[EventType "k.o."]
[EventCountry "RUS"]
[SourceTitle "playchess.com"]
[Source "ChessBase"]
[SourceQuality "1"]
[TimeControl "40/5400+30:1800+30"]

1. e4 {[%emt 0:00:04]} e5 {[%emt 0:00:05]} 2. Nf3 {[%emt 0:00:06]} Nc6 {[%emt 0:00:04]} 3. Bb5 {[%emt 0:00:05]} a6 {[%emt 0:00:04]} 4. Ba4 {[%emt 0:00:03]} Nf6 {[%emt 0:00:07]} 5. Nc3 {[%emt 0:00:12]} d6 {[%emt 0:05:43]} 6. Bxc6+ {[%emt 0:00:36]} bxc6 {[%emt 0:00:04]} 7. d4 {[%emt 0:00:05]} exd4 {[%emt 0:03:00]} 8. Nxd4 {[%emt 0:00:06]} c5 {[%emt 0:05:14]} 9. Nc6 {[%emt 0:00:32]} Qd7 {[%emt 0:00:08]} 10. Na5 {[%emt 0:00:05]} Be7 {[%emt 0:07:02]} 11. O-O {[%emt 0:04:06]} O-O {[%emt 0:06:09]} 12. Re1 {[%emt 0:04:35]} Rb8 {[%emt 0:08:08]} 13. Rb1 {[%emt 0:08:07]} Bb7 {[%emt 0:04:25]} 14. Qd3 {[%emt 0:05:58]} Ba8 {[%emt 0:10:09]} 15. Qxa6 {[%emt 0:05:19]} d5 {[%emt 0:02:01]} 16. exd5 {[%emt 0:13:07]} Nxd5 {[%emt 0:00:16]} 17. Qd3 {[%emt 0:01:25]} Bf6 {[%emt 0:00:43]} 18. Ne4 {[%emt 0:09:39]} Bd4 {[%emt 0:04:14]} 19. Bd2 {[%emt 0:08:53]} Rb6 {[%emt 0:09:08]} 20. c3 {[%emt 0:04:00]} f5 {[%emt 0:00:13]} 21. cxd4 {[%emt 0:08:14]} fxe4 {[%emt 0:00:10]} 22. Qc4 {[%emt 0:03:12]} Qf5 {[%emt 0:04:59]} 23. Rf1 {[%emt 0:03:10]} Rg6 {[%emt 0:01:53]} 24. g3 {[%emt 0:00:26]} cxd4 {[%emt 0:00:57]} 25. Qxd4 {[%emt 0:03:02]} Qf3 {[%emt 0:03:56]} 26. Qc4 {[%emt 0:05:23]} Kh8 {[%emt 0:04:31]} 27. Qc5 {[%emt 0:06:52]} e3 {[%emt 0:01:30]} 28. Nc4 {[%emt 0:01:35]} Qg2+ {[%emt 0:01:38]} 0-1

[Event "FIDE Womens World Cup 2021"]
[Site "Sochi"]
[Date "2021.07.20"]
[Round "3.4"]
[White "Dzagnidze, Nana"]
[Black "Yip, Carissa"]
[Result "1-0"]
[ECO "A06"]
[WhiteElo "2523"]
[BlackElo "2430"]
[Annotator "ChessBase"]
[PlyCount "115"]
[EventDate "2021.07.12"]
[EventType "k.o."]
[EventCountry "RUS"]
[SourceTitle "playchess.com"]
[Source "ChessBase"]
[SourceQuality "1"]
[TimeControl "1500+10"]

1. Nf3 {[%emt 0:00:04]} d5 {[%emt 0:00:01]} 2. d4 {[%emt 0:00:04]} e6 {[%emt 0:00:26]} 3. c4 {[%emt 0:00:08]} Ne7 {[%emt 0:00:02]} 4. Nc3 {[%emt 0:00:24]} g6 {[%emt 0:00:08]} 5. Bg5 {[%emt 0:00:27]} Bg7 {[%emt 0:00:06]} 6. Qd2 {[%emt 0:00:42]} h6 {[%emt 0:02:11]} 7. Bf4 {[%emt 0:04:19]} g5 {[%emt 0:01:11]} 8. Bg3 {[%emt 0:00:16]} Nf5 {[%emt 0:01:21]} 9. e3 {[%emt 0:00:08]} h5 {[%emt 0:00:52]} 10. h3 {[%emt 0:00:46]} c6 {[%emt 0:01:24]} 11. Be5 {[%emt 0:02:44]} f6 {[%emt 0:00:04]} 12. Bh2 {[%emt 0:02:20]} g4 {[%emt 0:00:08]} 13. Ng1 {[%emt 0:00:02]} Nd7 {[%emt 0:00:50]} 14. Bd3 {[%emt 0:00:33]} Nh4 {[%emt 0:01:56]} 15. Kf1 {[%emt 0:00:05]} Kf7 {[%emt 0:01:11]} 16. Bg3 {[%emt 0:01:51]} Ng6 {[%emt 0:01:23]} 17. hxg4 {[%emt 0:00:33]} hxg4 {[%emt 0:00:08]} 18. Rxh8 {[%emt 0:00:04]} Qxh8 {[%emt 0:00:05]} 19. cxd5 {[%emt 0:02:03]} cxd5 {[%emt 0:00:54]} 20. Nb5 {[%emt 0:00:51]} f5 {[%emt 0:01:14]} 21. Nc7 {[%emt 0:00:40]} Rb8 {[%emt 0:00:12]} 22. Nb5 {[%emt 0:00:12]} Ra8 {[%emt 0:00:30]} 23. Nc7 {[%emt 0:00:02]} Rb8 {[%emt 0:00:10]} 24. Nb5 {[%emt 0:00:02]} a6 {[%emt 0:00:30]} 25. Bxb8 {[%emt 0:00:19]} Nxb8 {[%emt 0:00:05]} 26. Nd6+ {[%emt 0:00:16]} Kf6 {[%emt 0:00:01]} 27. Nxc8 {[%emt 0:00:54]} Qxc8 {[%emt 0:00:02]} 28. Rc1 {[%emt 0:00:02]} Nc6 {[%emt 0:00:02]} 29. g3 {[%emt 0:00:21]} Bf8 {[%emt 0:02:20]} 30. Qc3 {[%emt 0:00:28]} Bd6 {[%emt 0:00:56]} 31. Bxa6 {[%emt 0:00:27]} Qh8 {[%emt 0:00:01]} 32. Bxb7 {[%emt 0:00:28]} Nb4 {[%emt 0:00:41]} 33. a3 {[%emt 0:01:55]} Na2 {[%emt 0:00:46]} 34. Qc6 {[%emt 0:00:04]} Nxc1 {[%emt 0:00:43]} 35. Qxd6 {[%emt 0:00:46]} Qh1 {[%emt 0:00:14]} 36. Ba6 {[%emt 0:00:58]} Qe4 {[%emt 0:02:16]} 37. Qb4 {[%emt 0:00:30]} Qh1 {[%emt 0:03:32]} 38. Qd2 {[%emt 0:01:06]} Nb3 {[%emt 0:00:55]} 39. Qc3 {[%emt 0:00:09]} Na1 {[%emt 0:00:03]} 40. b4 {[%emt 0:00:07]} Nh8 {[%emt 0:00:02]} 41. Qxa1 {[%emt 0:00:15]} Nf7 {[%emt 0:00:01]} 42. Ke2 {[%emt 0:01:57]} Ng5 {[%emt 0:00:20]} 43. Qe1 {[%emt 0:00:04]} Nh3 {[%emt 0:01:21]} 44. Nxh3 {[%emt 0:00:26]} Qf3+ {[%emt 0:00:02]} 45. Kd2 {[%emt 0:00:01]} gxh3 {[%emt 0:00:07]} 46. Be2 {[%emt 0:00:13]} Qg2 {[%emt 0:00:11]} 47. Bf1 {[%emt 0:00:05]} Qh1 {[%emt 0:00:20]} 48. Bxh3 {[%emt 0:00:05]} Qxh3 {[%emt 0:00:05]} 49. b5 {[%emt 0:00:08]} Qh7 {[%emt 0:00:05]} 50. b6 {[%emt 0:00:05]} Qb7 {[%emt 0:00:10]} 51. Qb1 {[%emt 0:00:03]} Kg5 {[%emt 0:00:12]} 52. a4 {[%emt 0:00:18]} Kg4 {[%emt 0:00:21]} 53. Qb5 {[%emt 0:00:27]} Kf3 {[%emt 0:00:22]} 54. a5 {[%emt 0:00:01]} Kxf2 {[%emt 0:00:19]} 55. a6 {[%emt 0:00:01]} Qe7 {[%emt 0:00:01]} 56. b7 {[%emt 0:00:09]} Qa3 {[%emt 0:00:02]} 57. Qe2+ {[%emt 0:00:14]} Kxg3 {[%emt 0:00:03]} 58. b8=Q+ {[%emt 0:00:04]} 1-0

[Event "FIDE Womens World Cup 2021"]
[Site "Sochi"]
[Date "2021.07.20"]
[Round "3.4"]
[White "Shuvalova, Polina"]
[Black "Garifullina, Leya"]
[Result "1-0"]
[ECO "B22"]
[WhiteElo "2489"]
[BlackElo "2390"]
[Annotator "ChessBase"]
[PlyCount "73"]
[EventDate "2021.07.12"]
[EventType "k.o."]
[EventCountry "RUS"]
[SourceTitle "playchess.com"]
[Source "ChessBase"]
[SourceQuality "1"]
[TimeControl "1500+10"]

1. e4 {[%emt 0:00:02]} c5 {[%emt 0:00:02]} 2. c3 {[%emt 0:00:02]} d5 {[%emt 0:00:02]} 3. exd5 {[%emt 0:00:03]} Qxd5 {[%emt 0:00:02]} 4. d4 {[%emt 0:00:06]} Nf6 {[%emt 0:00:23]} 5. Nf3 {[%emt 0:00:02]} Nc6 {[%emt 0:00:02]} 6. Na3 {[%emt 0:00:03]} Bg4 {[%emt 0:00:17]} 7. Bc4 {[%emt 0:02:44]} Bxf3 {[%emt 0:00:16]} 8. gxf3 {[%emt 0:01:34]} Qh5 {[%emt 0:00:17]} 9. dxc5 {[%emt 0:00:28]} Qxc5 {[%emt 0:00:39]} 10. Be3 {[%emt 0:00:17]} Qh5 {[%emt 0:01:33]} 11. Nb5 {[%emt 0:04:45]} Qe5 {[%emt 0:01:44]} 12. f4 {[%emt 0:00:46]} Qb8 {[%emt 0:00:05]} 13. Qb3 {[%emt 0:00:38]} e6 {[%emt 0:02:50]} 14. f5 {[%emt 0:00:02]} a6 {[%emt 0:01:46]} 15. fxe6 {[%emt 0:00:57]} fxe6 {[%emt 0:00:02]} 16. Bxe6 {[%emt 0:00:37]} Be7 {[%emt 0:01:16]} 17. Nd4 {[%emt 0:00:20]} Nxd4 {[%emt 0:00:02]} 18. Bxd4 {[%emt 0:00:12]} Qf4 {[%emt 0:00:32]} 19. Be3 {[%emt 0:01:57]} Qf3 {[%emt 0:00:15]} 20. Rg1 {[%emt 0:00:03]} Kf8 {[%emt 0:00:03]} 21. Rd1 {[%emt 0:00:15]} Re8 {[%emt 0:01:06]} 22. Qa4 {[%emt 0:00:33]} h5 {[%emt 0:00:49]} 23. h3 {[%emt 0:00:34]} b5 {[%emt 0:00:28]} 24. Qxa6 {[%emt 0:00:35]} b4 {[%emt 0:01:17]} 25. Rd3 {[%emt 0:02:38]} bxc3 {[%emt 0:00:31]} 26. bxc3 {[%emt 0:00:14]} Ra8 {[%emt 0:01:53]} 27. Qb5 {[%emt 0:00:42]} Qe4 {[%emt 0:00:58]} 28. Bb3 {[%emt 0:00:38]} Rc8 {[%emt 0:01:33]} 29. Ke2 {[%emt 0:01:08]} g6 {[%emt 0:03:07]} 30. Rd4 {[%emt 0:00:27]} Qf5 {[%emt 0:00:59]} 31. Qxf5 {[%emt 0:00:19]} gxf5 {[%emt 0:00:01]} 32. Rf4 {[%emt 0:00:02]} Rxc3 {[%emt 0:01:51]} 33. Rxf5 {[%emt 0:00:16]} Rc6 {[%emt 0:00:17]} 34. Bd4 {[%emt 0:00:30]} Rd6 {[%emt 0:00:07]} 35. Be5 {[%emt 0:01:22]} Ra6 {[%emt 0:00:22]} 36. Rg6 {[%emt 0:00:09]} Ke8 {[%emt 0:00:52]} 37. Bxf6 {[%emt 0:00:08]} 1-0

[Event "FIDE Womens World Cup 2021"]
[Site "Sochi"]
[Date "2021.07.20"]
[Round "3.4"]
[White "Assaubayeva, Bibisara"]
[Black "Khotenashvili, Bela"]
[Result "1/2-1/2"]
[ECO "D31"]
[WhiteElo "2389"]
[BlackElo "2471"]
[Annotator "ChessBase"]
[PlyCount "176"]
[EventDate "2021.07.12"]
[EventType "k.o."]
[EventCountry "RUS"]
[SourceTitle "playchess.com"]
[Source "ChessBase"]
[SourceQuality "1"]
[TimeControl "1500+10"]

1. d4 {[%emt 0:00:10]} d5 {[%emt 0:00:10]} 2. c4 {[%emt 0:00:00]} e6 {[%emt 0:00:00]} 3. Nc3 {[%emt 0:00:00]} a6 {[%emt 0:00:00]} 4. c5 {[%emt 0:00:06]} e5 {[%emt 0:00:05]} 5. dxe5 {[%emt 0:00:39]} d4 {[%emt 0:00:07]} 6. Ne4 {[%emt 0:00:41]} Qd5 {[%emt 0:01:12]} 7. Ng3 {[%emt 0:00:23]} Bxc5 {[%emt 0:00:49]} 8. Nf3 {[%emt 0:00:02]} Ne7 {[%emt 0:00:38]} 9. Nh5 {[%emt 0:01:29]} O-O {[%emt 0:05:15]} 10. g3 {[%emt 0:00:15]} Nbc6 {[%emt 0:01:35]} 11. Nf4 {[%emt 0:00:30]} Qd8 {[%emt 0:05:50]} 12. Bg2 {[%emt 0:00:07]} Ng6 {[%emt 0:02:17]} 13. Nd3 {[%emt 0:06:09]} Bb6 {[%emt 0:00:06]} 14. h4 {[%emt 0:00:39]} Re8 {[%emt 0:00:53]} 15. Bg5 {[%emt 0:01:05]} Qd7 {[%emt 0:00:31]} 16. Bf4 {[%emt 0:02:20]} Nxf4 {[%emt 0:00:33]} 17. gxf4 {[%emt 0:00:02]} Ne7 {[%emt 0:00:42]} 18. Nd2 {[%emt 0:01:10]} Nf5 {[%emt 0:00:27]} 19. h5 {[%emt 0:00:26]} h6 {[%emt 0:00:23]} 20. Ne4 {[%emt 0:00:13]} Qe7 {[%emt 0:00:44]} 21. Qc2 {[%emt 0:00:44]} Ba5+ {[%emt 0:02:20]} 22. Kf1 {[%emt 0:00:09]} c6 {[%emt 0:00:25]} 23. Bh3 {[%emt 0:01:42]} Bc7 {[%emt 0:00:14]} 24. Bxf5 {[%emt 0:04:27]} Bxf5 {[%emt 0:00:01]} 25. f3 {[%emt 0:00:03]} Kh8 {[%emt 0:00:47]} 26. Kf2 {[%emt 0:02:14]} Rac8 {[%emt 0:00:02]} 27. Rag1 {[%emt 0:00:21]} Bb8 {[%emt 0:00:33]} 28. Qc5 {[%emt 0:01:10]} Qe6 {[%emt 0:02:42]} 29. Qxd4 {[%emt 0:00:32]} Rcd8 {[%emt 0:00:10]} 30. Qb6 {[%emt 0:00:45]} Qxa2 {[%emt 0:00:17]} 31. Rg3 {[%emt 0:00:15]} Rg8 {[%emt 0:00:15]} 32. Rhg1 {[%emt 0:00:11]} Rc8 {[%emt 0:00:12]} 33. Qxb7 {[%emt 0:00:19]} Qd5 {[%emt 0:00:08]} 34. Qxa6 {[%emt 0:00:22]} Rcd8 {[%emt 0:00:12]} 35. Qb7 {[%emt 0:00:29]} Rd7 {[%emt 0:00:08]} 36. Qb4 {[%emt 0:00:06]} Ba7+ {[%emt 0:00:02]} 37. Kf1 {[%emt 0:00:20]} Bxg1 {[%emt 0:00:01]} 38. Rxg1 {[%emt 0:00:06]} Bxe4 {[%emt 0:00:13]} 39. fxe4 {[%emt 0:00:27]} Qd4 {[%emt 0:00:15]} 40. e6 {[%emt 0:00:21]} Qxb4 {[%emt 0:00:16]} 41. Nxb4 {[%emt 0:00:01]} fxe6 {[%emt 0:00:12]} 42. Nxc6 {[%emt 0:00:01]} Rc8 {[%emt 0:00:13]} 43. Ne5 {[%emt 0:00:08]} Rc1+ {[%emt 0:00:10]} 44. Kf2 {[%emt 0:00:00]} Rxg1 {[%emt 0:00:01]} 45. Nxd7 {[%emt 0:00:08]} Rb1 {[%emt 0:00:14]} 46. Nc5 {[%emt 0:00:07]} Rxb2 {[%emt 0:00:06]} 47. Nxe6 {[%emt 0:00:01]} Kg8 {[%emt 0:00:05]} 48. f5 {[%emt 0:00:04]} Kf7 {[%emt 0:00:10]} 49. Kf3 {[%emt 0:00:01]} Kf6 {[%emt 0:00:02]} 50. Nf4 {[%emt 0:00:06]} Rb1 {[%emt 0:00:12]} 51. Ne6 {[%emt 0:00:21]} Rh1 {[%emt 0:00:24]} 52. Nf4 {[%emt 0:00:06]} Rf1+ {[%emt 0:00:09]} 53. Ke3 {[%emt 0:00:08]} Rg1 {[%emt 0:00:12]} 54. Kf3 {[%emt 0:00:05]} Ke5 {[%emt 0:00:09]} 55. Ng6+ {[%emt 0:00:05]} Kf6 {[%emt 0:00:01]} 56. Nf4 {[%emt 0:00:02]} Rb1 {[%emt 0:00:15]} 57. Ne6 {[%emt 0:00:04]} Rf1+ {[%emt 0:00:13]} 58. Ke3 {[%emt 0:00:04]} Rh1 {[%emt 0:00:10]} 59. Nf4 {[%emt 0:00:04]} Ra1 {[%emt 0:00:10]} 60. Kf3 {[%emt 0:00:02]} Ra3+ {[%emt 0:00:08]} 61. e3 {[%emt 0:00:13]} Ra1 {[%emt 0:00:01]} 62. Ne6 {[%emt 0:00:04]} Rf1+ {[%emt 0:00:11]} 63. Kg2 {[%emt 0:00:01]} Re1 {[%emt 0:00:04]} 64. Kf3 {[%emt 0:00:04]} Ra1 {[%emt 0:00:22]} 65. Nf4 {[%emt 0:00:15]} Ra7 {[%emt 0:00:12]} 66. Ne6 {[%emt 0:00:03]} Ke5 {[%emt 0:00:14]} 67. Nd4 {[%emt 0:00:08]} Ra1 {[%emt 0:00:06]} 68. Ne6 {[%emt 0:00:05]} Kf6 {[%emt 0:00:17]} 69. Nf4 {[%emt 0:00:11]} Rg1 {[%emt 0:00:11]} 70. Kf2 {[%emt 0:00:06]} Rh1 {[%emt 0:00:09]} 71. Kg2 {[%emt 0:00:03]} Rb1 {[%emt 0:00:04]} 72. Kf3 {[%emt 0:00:04]} Rf1+ {[%emt 0:00:18]} 73. Kg2 {[%emt 0:00:03]} Re1 {[%emt 0:00:03]} 74. Kf2 {[%emt 0:00:01]} Ra1 {[%emt 0:00:02]} 75. Kf3 {[%emt 0:00:02]} Ra7 {[%emt 0:00:05]} 76. Ne6 {[%emt 0:00:02]} Ra1 {[%emt 0:00:19]} 77. Nf4 {[%emt 0:00:04]} Rb1 {[%emt 0:00:17]} 78. Ne6 {[%emt 0:00:04]} Rf1+ {[%emt 0:00:12]} 79. Kg2 {[%emt 0:00:02]} Ra1 {[%emt 0:00:07]} 80. Kf3 {[%emt 0:00:04]} Rh1 {[%emt 0:00:13]} 81. Nf4 {[%emt 0:00:02]} Rg1 {[%emt 0:00:07]} 82. Kf2 {[%emt 0:00:02]} Rb1 {[%emt 0:00:04]} 83. Kf3 {[%emt 0:00:02]} Ra1 {[%emt 0:00:16]} 84. Ne6 {[%emt 0:00:04]} Rf1+ {[%emt 0:00:13]} 85. Kg2 {[%emt 0:00:02]} Ra1 {[%emt 0:00:06]} 86. Kf3 {[%emt 0:00:02]} Rb1 {[%emt 0:00:08]} 87. Nf4 {[%emt 0:00:03]} Rb7 {[%emt 0:00:18]} 88. Ne6 {[%emt 0:00:04]} Rb1 {[%emt 0:00:08]} 1/2-1/2

[Event "FIDE Womens World Cup 2021"]
[Site "Sochi"]
[Date "2021.07.20"]
[Round "3.5"]
[White "Garifullina, Leya"]
[Black "Shuvalova, Polina"]
[Result "0-1"]
[ECO "C88"]
[WhiteElo "2390"]
[BlackElo "2489"]
[Annotator "ChessBase"]
[PlyCount "70"]
[EventDate "2021.07.12"]
[EventType "k.o."]
[EventCountry "RUS"]
[SourceTitle "playchess.com"]
[Source "ChessBase"]
[SourceQuality "1"]
[TimeControl "600+10"]

1. e4 {[%emt 0:00:02]} e5 {[%emt 0:00:01]} 2. Nf3 {[%emt 0:00:01]} Nc6 {[%emt 0:00:01]} 3. Bb5 {[%emt 0:00:01]} a6 {[%emt 0:00:01]} 4. Ba4 {[%emt 0:00:01]} Nf6 {[%emt 0:00:02]} 5. O-O {[%emt 0:00:02]} Be7 {[%emt 0:00:02]} 6. Re1 {[%emt 0:00:02]} b5 {[%emt 0:00:04]} 7. Bb3 {[%emt 0:00:01]} O-O {[%emt 0:00:02]} 8. a4 {[%emt 0:00:01]} Bb7 {[%emt 0:00:47]} 9. d3 {[%emt 0:00:42]} d6 {[%emt 0:00:04]} 10. Nbd2 {[%emt 0:00:14]} Qd7 {[%emt 0:00:50]} 11. c3 {[%emt 0:00:13]} Rfe8 {[%emt 0:00:22]} 12. Nf1 {[%emt 0:00:05]} h6 {[%emt 0:00:20]} 13. Ng3 {[%emt 0:00:05]} Bf8 {[%emt 0:00:02]} 14. d4 {[%emt 0:00:11]} Rad8 {[%emt 0:00:22]} 15. axb5 {[%emt 0:00:06]} axb5 {[%emt 0:00:03]} 16. d5 {[%emt 0:00:14]} Ne7 {[%emt 0:00:03]} 17. Qe2 {[%emt 0:00:41]} c6 {[%emt 0:00:07]} 18. dxc6 {[%emt 0:00:02]} Bxc6 {[%emt 0:00:06]} 19. h3 {[%emt 0:00:44]} Ng6 {[%emt 0:00:31]} 20. Qe3 {[%emt 0:00:43]} Ra8 {[%emt 0:00:15]} 21. Rxa8 {[%emt 0:00:02]} Rxa8 {[%emt 0:00:06]} 22. Rd1 {[%emt 0:00:15]} Qb7 {[%emt 0:00:05]} 23. Bc2 {[%emt 0:00:33]} Re8 {[%emt 0:01:24]} 24. Qe1 {[%emt 0:01:06]} Nf4 {[%emt 0:01:07]} 25. Nh2 {[%emt 0:01:29]} d5 {[%emt 0:01:28]} 26. f3 {[%emt 0:00:40]} b4 {[%emt 0:00:57]} 27. Ng4 {[%emt 0:00:20]} Nxg4 {[%emt 0:00:15]} 28. hxg4 {[%emt 0:00:01]} bxc3 {[%emt 0:00:44]} 29. bxc3 {[%emt 0:00:02]} Bc5+ {[%emt 0:00:49]} 30. Be3 {[%emt 0:00:03]} Qa7 {[%emt 0:00:07]} 31. Bf2 {[%emt 0:00:13]} dxe4 {[%emt 0:00:38]} 32. Bxe4 {[%emt 0:00:05]} Bxe4 {[%emt 0:00:17]} 33. Nxe4 {[%emt 0:00:02]} Bxf2+ {[%emt 0:00:02]} 34. Qxf2 {[%emt 0:00:02]} Qc7 {[%emt 0:00:14]} 35. g3 {[%emt 0:00:31]} Nh3+ {[%emt 0:00:02]} 0-1